bitfinex/quotes_ETHUSD_20240926
["timestamp","ask_amount","ask_price","bid_price","bid_amount"]
[1727366944199,4.56156,2655.8,2655.3,3.76596]
[1727366944507,4.56156,2655.8,2655.3,7.53191]
[1727366944508,0.7962,2655.8,2655.3,7.53191]
[1727366944711,0.7962,2655.8,2655.3,3.76595]
[1727366945066,4.56157,2655.8,2655.3,3.76595]
[1727366945270,3.76563,2655.6,2655.1,3.8047286]
[1727366945612,5.8190793,2655.8,2655.1,3.8047286]
[1727366945766,0.7962,2655.8,2655.3,3.76601]
[1727366945965,0.7962,2655.8,2655.3,3.76596]
[1727366946165,0.7962,2655.8,2655.4,3.76582]
[1727366946387,0.7962,2655.8,2655.3,3.76596]
[1727366946714,0.7962,2655.8,2655.1,3.8047986]
[1727366946715,3.76557,2655.7,2655.2,3.76619]
[1727366946865,4.65574668,2655.8,2655.1,0.0384886]
[1727366947065,3.7657,2655.6,2655.1,0.0384886]
[1727366947502,3.85997975,2655.5,2655.1,0.0384886]
[1727366947811,8.32707,2655.8,2655.2,3.76617]
[1727366948009,4.56162,2655.8,2655.2,3.76617]
[1727366948364,0.09414337,2655.7,2655.2,3.76612]
[1727366948595,3.85963337,2655.7,2655.2,3.76612]
[1727366949305,3.76549,2655.7,2655.1,3.8048086]
[1727366950297,3.7655,2655.7,2655.1,3.8048086]
[1727366950670,4.56162,2655.8,2655.2,3.76617]
[1727366950910,3.76563,2655.6,2655.1,0.0384886]
[1727366951110,5.017782,2655.8,2655.1,0.0384886]
[1727366951440,0.7962,2655.8,2655.4,3.7659]
[1727366952071,0.7962,2655.8,2655.5,3.76574]
[1727366952371,0.7962,2655.8,2655.4,3.7659]
[1727366952572,0.7962,2655.8,2655.4,3.76578]
[1727366953394,0.7962,2655.8,2655.2,3.76609]
[1727366953395,3.76548,2655.7,2655.2,3.76609]
[1727366953979,3.76548,2655.7,2655.1,0.0384886]
[1727366953980,0.0941392,2655.6,2655.1,0.0384886]
[1727366954183,3.76604,2655.4,2655.1,0.0384886]
[1727366954586,4.53376,2655.3,2655.1,0.0384886]
[1727366955323,3.86035335,2655.2,2655.1,0.0384886]
[1727366956221,4.69976469,2655.2,2655.1,0.0384886]
[1727366956520,8.94800772,2655.2,2655.1,0.0384886]
[1727366956722,8.85384437,2655.2,2655.1,0.0384886]
[1727366957284,4.60560134,2655.2,2655.1,0.0384886]
[1727366957590,4.69977112,2655.2,2655.1,0.0384886]
[1727366957792,8.85384437,2655.2,2655.1,0.0384886]
[1727366957993,9.67804437,2655.2,2655.1,0.0384886]
[1727366960433,4.59039,2655.2,2655.1,0.0384886]
[1727366961490,4.57697,2655.5,2655.1,0.0384886]
[1727366961918,0.8111,2655.5,2655.2,3.76617]
[1727366962113,0.8155,2655.8,2655.3,3.766]
[1727366962611,3.76555,2655.7,2655.1,3.8048186]
[1727366962826,3.76584,2655.5,2655.1,0.0384886]
[1727366963209,0.09415258,2655.4,2655.1,0.0384886]
[1727366963530,3.86007258,2655.4,2655.1,0.0384886]
[1727366963836,3.76619,2655.2,2655.1,0.0384886]
[1727366964138,4.60975226,2655.2,2655.1,0.0384886]
[1727366964931,4.57523,2655.3,2655.1,0.0384886]
[1727366965144,1.26001926,2655.7,2655.1,0.0384886]
[1727366965292,3.7657,2655.6,2655.1,0.0384886]
[1727366965488,3.7657,2655.6,2655.1,3.8047986]
[1727366965735,0.7925,2655.7,2655.3,3.766]
[1727366966034,0.7925,2655.7,2655.1,0.0384886]
[1727366966035,3.85983513,2655.6,2655.1,0.0384886]
[1727366966242,4.31562613,2655.6,2655.1,0.0384886]
[1727366966397,3.76576,2655.5,2655.1,0.0384886]
[1727366966728,4.31562613,2655.6,2655.1,0.0384886]
[1727366966729,3.86007844,2655.4,2655.1,0.0384886]
[1727366967617,3.85992405,2655.5,2655.1,0.0384886]
[1727366968333,3.76592,2655.4,2655.1,0.0384886]
[1727366968629,7.987251,2655.6,2655.1,0.0384886]
[1727366968926,7.987261,2655.6,2655.1,0.0384886]
[1727366969229,3.76583,2655.5,2655.1,0.0384886]
[1727366969525,3.76563,2655.6,2655.1,3.8048186]
[1727366969833,3.76563,2655.6,2655.1,7.5710586]
[1727366970030,0.7925,2655.7,2655.2,3.76613]
[1727366970331,0.7925,2655.7,2655.1,3.8047286]
[1727366970545,0.7925,2655.7,2655.2,3.76616]
[1727366970718,4.55811,2655.7,2655.2,3.76616]
[1727366971233,8.01317303,2656.1,2655.1,3.8048086]
[1727366971234,7.53145,2655.6,2655.1,3.8048086]
[1727366971417,3.85998414,2655.5,2655.1,0.0384886]
[1727366971603,3.76583,2655.5,2655.1,0.0384886]
[1727366972506,7.53169,2655.5,2655.1,0.0384886]
[1727366972708,3.76583,2655.5,2655.1,0.0384886]
[1727366974340,3.86008414,2655.4,2655.1,0.0384886]
[1727366974996,3.76593,2655.4,2655.1,0.0384886]
[1727366976042,3.86027421,2655.3,2655.1,0.0384886]
[1727366976712,3.76619,2655.2,2655.1,0.0384886]
[1727366976917,0.09415421,2655.3,2655.1,0.0384886]
[1727366977322,3.86022421,2655.3,2655.1,0.0384886]
[1727366977619,3.76619,2655.2,2655.1,0.0384886]
[1727366977817,0.09415421,2655.3,2655.1,0.0384886]
[1727366978327,8.79903303,2655.7,2655.1,0.0384886]
[1727366978328,4.5508,2655.7,2655.1,0.0384886]
[1727366978504,1.97138189,2656.0,2655.1,3.8047386]
[1727366978505,0.7974,2656.0,2655.1,3.8047386]
[1727366978708,3.76561,2655.7,2655.2,3.76616]
[1727366979212,3.76567,2655.6,2655.1,7.5710086]
[1727366979435,3.76561,2655.7,2655.2,3.76616]
[1727366979605,0.09414964,2655.6,2655.1,3.8047386]
[1727366979975,3.85978964,2655.6,2655.1,3.8047386]
[1727366980279,4.56249,2656.0,2655.3,0.795]
[1727366980280,0.7974,2656.0,2655.3,0.795]
[1727366980447,3.76496,2656.1,2655.6,3.76557]
[1727366980609,2.36694951,2656.7,2656.2,3.76473]
[1727366980610,0.822,2656.6,2656.2,3.76473]
[1727366980808,3.76382,2656.9,2655.7,4.56045]
[1727366980809,4.58582,2656.9,2656.1,3.76489]
[1727366981023,3.76407,2656.7,2656.2,3.76477]
[1727366981247,4.58582,2656.9,2656.3,3.76462]
[1727366981248,3.76396,2656.8,2656.3,3.76462]
[1727366981608,3.76396,2656.8,2656.2,0.795]
[1727366981914,0.09410991,2656.7,2656.2,0.795]
[1727366982126,3.76398,2656.8,2656.2,0.795]
[1727366982305,3.76398,2656.8,2656.2,4.55964]
[1727366982507,0.822,2656.9,2656.2,4.55964]
[1727366982706,0.822,2656.9,2656.4,3.76448]
[1727366983008,4.58587,2656.9,2656.3,3.76462]
[1727366983634,3.76397,2656.8,2656.2,4.55964]
[1727366984646,0.822,2656.9,2656.3,3.76461]
[1727366985049,4.58587,2656.9,2656.2,4.55964]
[1727366985378,4.24824303,2657.3,2656.2,4.55964]
[1727366985379,3.76361,2657.1,2656.4,3.76447]
[1727366985593,4.58659,2657.2,2656.4,3.76447]
[1727366985876,4.58659,2657.2,2656.6,3.76418]
[1727366986280,8.35005,2657.2,2656.6,3.76418]
[1727366986644,3.76356,2657.1,2656.6,3.76418]
[1727366987081,3.76353,2657.1,2656.6,3.76418]
[1727366987687,4.58659,2657.2,2656.6,3.76418]
[1727366987688,7.52685,2657.2,2656.7,0.821]
[1727366988042,3.76339,2657.2,2656.7,0.821]
[1727366988944,3.7635,2657.1,2656.7,0.821]
[1727366989147,3.76339,2657.2,2656.7,0.821]
[1727366989694,3.76359,2657.1,2656.7,0.821]
[1727366990880,3.76374,2657.0,2656.7,0.821]
[1727366991186,4.24824303,2657.3,2656.4,4.57824]
[1727366991187,3.85791029,2656.9,2656.4,4.57824]
[1727366991342,3.85791029,2656.9,2656.4,4.57819]
[1727366991970,3.76381,2656.9,2656.4,4.57819]
[1727366992490,3.76381,2656.9,2656.4,8.34258]
[1727366992672,3.76381,2656.9,2656.4,4.57819]
[1727366993522,3.76415,2656.7,2656.2,4.53405]
[1727366993710,0.0941112,2656.6,2656.2,4.53405]
[1727366993881,3.8583312,2656.6,2656.2,0.7694]
[1727366994419,0.8269,2656.9,2656.0,3.76496]
[1727366994731,3.76463,2656.3,2655.9,0.7951]
[1727366995551,0.09412256,2656.4,2655.9,0.7951]
[1727366995815,4.59355,2656.3,2655.6,4.56063]
[1727366995975,4.59355,2656.3,2655.8,3.76532]
[1727366996384,0.09412255,2656.4,2655.9,3.76517]
[1727366996624,0.09412254,2656.4,2655.8,3.76532]
[1727366996817,3.76471,2656.3,2655.8,3.76532]
[1727366997175,3.85892573,2656.2,2655.6,8.32617]
[1727366997618,3.85892573,2656.2,2655.7,3.76546]
[1727366997976,3.7648,2656.2,2655.7,3.76546]
[1727366998813,3.7648,2656.2,2655.7,7.53087]
[1727366999122,3.76444,2656.5,2655.9,7.53027]
[1727366999317,7.52888,2656.5,2655.9,3.76512]
[1727366999529,7.52887,2656.5,2655.9,3.76512]
[1727366999678,7.52886,2656.5,2655.9,3.76512]
[1727367000316,3.76486,2656.2,2655.7,3.76538]
[1727367000549,3.45656315,2656.4,2655.6,4.56069]
[1727367000550,3.85888852,2656.3,2655.6,4.56069]
[1727367000720,3.76495,2656.1,2655.6,4.56069]
[1727367001057,4.59314,2656.6,2655.9,3.76518]
[1727367001058,7.52889,2656.5,2655.9,3.76518]
[1727367001352,3.76464,2656.3,2655.7,7.53074]
[1727367001510,3.76464,2656.3,2655.8,3.76533]
[1727367002307,3.76414,2656.7,2656.0,0.7718]
[1727367002508,4.222864,2656.7,2656.1,3.76489]
[1727367002709,3.76395,2656.8,2656.3,3.76462]
[1727367002943,8.35081,2656.9,2656.3,3.76462]
[1727367003309,7.22023315,2657.0,2656.5,3.76434]
[1727367003508,3.76422,2656.6,2656.1,3.76479]
[1727367003710,3.45656315,2656.7,2656.2,3.76473]
[1727367004160,7.22065315,2656.7,2656.2,3.76473]
[1727367004348,3.76409,2656.7,2656.2,3.76473]
[1727367004709,3.76457,2656.4,2655.8,4.51715]
[1727367004949,3.76493,2656.1,2655.8,0.7519]
[1727367005773,3.85927404,2656.0,2655.5,7.53905]
[1727367006065,3.7652,2655.9,2655.5,3.7733]
[1727367006564,3.7652,2655.9,2655.5,0.7733]
[1727367006730,3.76534,2655.8,2655.5,0.7733]
[1727367006931,0.09414049,2655.9,2655.4,3.76588]
[1727367007462,3.76514,2656.0,2655.4,3.76588]
[1727367007627,3.76513,2656.0,2655.4,7.53172]
[1727367007983,3.76513,2656.0,2655.5,3.76567]
[1727367008152,3.76513,2656.0,2655.2,8.0917]
[1727367008153,3.76429,2656.6,2655.8,3.76524]
[1727367008475,3.76429,2656.6,2656.0,3.76496]
[1727367008637,3.76443,2656.5,2656.0,3.76496]
[1727367009034,3.76443,2656.5,2656.0,7.52987]
[1727367009238,4.56288,2656.7,2656.1,4.59709]
[1727367009482,3.76378,2656.9,2656.2,3.7647]
[1727367009783,3.76409,2656.7,2656.2,3.76469]
[1727367010072,3.76421,2656.6,2656.1,0.8322]
[1727367010275,3.76409,2656.7,2656.2,3.76468]
[1727367010495,3.76409,2656.7,2655.7,6.76545]
[1727367010496,3.76477,2656.2,2655.7,3.76545]
[1727367010704,3.76546,2655.8,2655.2,0.8322]
[1727367010849,3.85973183,2655.7,2655.2,0.8322]
[1727367011564,3.85963183,2655.7,2655.2,4.59837]
[1727367011764,3.76546,2655.8,2655.3,3.76603]
[1727367011987,3.85960116,2655.8,2655.3,3.76603]
[1727367012660,3.76551,2655.7,2655.2,4.59837]
[1727367012862,3.85970294,2655.7,2655.2,4.59829]
[1727367013252,0.09414287,2655.6,2655.2,0.8322]
[1727367013498,3.76562,2655.6,2655.2,4.59831]
[1727367013790,3.8596351,2655.7,2655.2,8.36442]
[1727367014178,0.8173,2655.6,2655.1,3.0384886]
[1727367014349,0.8173,2655.6,2655.3,3.76594]
[1727367014551,0.0941451,2655.7,2655.3,3.76594]
[1727367014753,3.8597051,2655.7,2655.2,3.76616]
[1727367015087,3.8597051,2655.7,2655.3,3.76603]
[1727367015294,3.76514,2656.0,2655.5,3.76566]
[1727367015507,3.76465,2656.3,2655.8,3.76533]
[1727367015827,3.76474,2656.3,2655.6,3.76552]
[1727367015982,0.7681,2656.4,2655.7,3.76548]
[1727367016182,4.53271,2656.4,2655.8,3.76534]
[1727367016381,0.7681,2656.4,2655.9,3.76515]
[1727367016582,0.7681,2656.4,2655.8,3.76531]
[1727367016812,3.7647,2656.3,2655.8,3.76527]
[1727367017084,3.7647,2656.3,2655.8,7.53053]
[1727367017282,4.53269,2656.4,2655.8,3.76526]
[1727367017486,3.7647,2656.3,2655.8,3.76526]
[1727367017727,0.7681,2656.4,2656.0,3.76505]
[1727367018218,4.53261,2656.4,2655.9,3.76515]
[1727367018396,8.01733122,2656.7,2656.0,4.53387]
[1727367018397,3.76432,2656.6,2656.0,4.53387]
[1727367018800,4.51647,2656.7,2656.2,3.7647]
[1727367019124,3.76387,2656.9,2656.3,3.83981055]
[1727367019325,3.76356,2657.1,2656.3,3.83981055]
[1727367019326,7.52717,2657.1,2656.6,0.7548]
[1727367019544,3.76356,2657.1,2656.6,0.7548]
[1727367019821,3.76337,2657.2,2656.7,3.76405]
[1727367020232,3.76337,2657.2,2656.7,3.76399]
[1727367020541,0.8289,2657.3,2656.6,0.7548]
[1727367020685,3.76253,2657.8,2657.3,3.7631]
[1727367020892,0.7841,2657.9,2657.3,3.7631]
[1727367021227,3.76252,2657.8,2657.3,7.52621]
[1727367021521,3.76203,2658.2,2657.7,0.7815]
[1727367021731,0.0384886,2658.3,2657.8,3.7625]
[1727367021897,0.0384886,2658.3,2657.7,0.7815]
[1727367022221,3.76225,2658.0,2657.7,0.7815]
[1727367022825,3.85610669,2658.2,2657.7,0.7815]
[1727367023058,3.76205,2658.2,2657.7,0.7815]
[1727367023383,0.0384886,2658.3,2657.8,3.7625]
[1727367023590,0.0384886,2658.3,2657.7,0.7815]
[1727367023830,0.0384886,2658.3,2657.8,0.07523628]
[1727367024137,0.0384886,2658.3,2658.0,3.76211]
[1727367024337,0.0384886,2658.3,2658.1,3.76207]
[1727367024523,0.0384886,2658.3,2658.2,0.8124]
[1727367025102,0.0384886,2658.3,2657.9,0.7782]
[1727367025302,0.0384886,2658.3,2657.9,7.54051]
[1727367025552,0.0384886,2658.3,2658.0,3.76221]
[1727367025849,0.0384886,2658.3,2658.2,3.0]
[1727367026050,0.0384886,2658.3,2657.7,0.57777327]
[1727367026051,0.0384886,2658.3,2657.7,3.0]
[1727367026340,0.0384886,2658.3,2658.0,3.0]
[1727367026865,0.0384886,2658.3,2657.7,3.76262]
[1727367026866,0.0384886,2658.3,2657.7,3.76254]
[1727367027558,0.0384886,2658.3,2657.8,3.76249]
[1727367027863,0.0384886,2658.3,2657.9,3.76235]
[1727367028057,0.0384886,2658.3,2657.7,3.76254]
[1727367028639,0.0384886,2658.3,2657.8,3.76249]
[1727367029560,0.0384886,2658.3,2658.0,4.56203]
[1727367030461,0.0384886,2658.3,2658.0,8.32415]
[1727367030680,0.0384886,2658.3,2658.0,4.56202]
[1727367030826,0.0384886,2658.3,2658.0,0.7999]
[1727367031162,0.0384886,2658.3,2658.1,3.83730836]
[1727367031379,0.0384886,2658.3,2658.1,3.83730839]
[1727367031677,0.0384886,2658.3,2658.1,3.76208]
[1727367031871,0.0384886,2658.3,2658.0,4.56203]
[1727367032655,0.0384886,2658.3,2658.1,3.76208]
[1727367033065,0.0384886,2658.3,2658.0,4.56203]
[1727367033427,0.0384886,2658.3,2658.1,3.76207]
[1727367033633,0.0384886,2658.3,2658.2,6.76194]
[1727367034757,0.0384886,2658.3,2658.2,3.0]
[1727367034955,0.0384886,2658.3,2658.2,6.76194]
[1727367035158,0.0384886,2658.3,2658.2,3.0]
[1727367036160,0.0384886,2658.3,2658.0,4.56205]
[1727367036161,0.0384886,2658.3,2658.1,3.0]
[1727367036397,0.0384886,2658.3,2658.0,3.7999]
[1727367036691,0.0384886,2658.3,2657.8,3.0]
[1727367036845,0.0384886,2658.3,2658.0,3.76222]
[1727367037045,0.0384886,2658.3,2658.0,6.76219]
[1727367037240,0.0384886,2658.3,2658.0,3.0]
[1727367037656,0.0384886,2658.3,2657.8,6.76247]
[1727367037874,0.0384886,2658.3,2658.0,3.0]
[1727367038278,4.25316122,2659.0,2658.4,3.76153]
[1727367038279,0.7817,2659.0,2658.4,3.76153]
[1727367038460,3.76029,2659.4,2658.1,3.8113]
[1727367038461,4.54199,2659.4,2658.6,4.57253]
[1727367038679,0.7817,2659.4,2658.7,0.07521389]
[1727367038878,0.7817,2659.4,2658.9,3.7609]
[1727367039079,0.7817,2659.4,2659.0,0.07520855]
[1727367039481,0.7817,2659.4,2658.8,7.52197]
[1727367039792,0.7817,2659.4,2658.8,3.76098]
[1727367039996,4.54203,2659.4,2658.8,3.76098]
[1727367041196,0.7817,2659.4,2658.8,7.52198]
[1727367041649,7.52032,2659.5,2658.8,7.52197]
[1727367041852,3.76027,2659.4,2658.8,3.76098]
[1727367042351,3.76045,2659.3,2658.8,3.76098]
[1727367042578,0.7995,2659.2,2658.8,3.76098]
[1727367043354,4.56004,2659.2,2658.6,3.76129]
[1727367043781,4.56004,2659.2,2658.6,7.52255]
[1727367044095,0.6469886,2659.2,2658.7,3.76122]
[1727367044248,3.76039,2659.3,2658.7,3.76122]
[1727367044454,3.76039,2659.3,2658.6,3.76126]
[1727367044703,3.7603,2659.4,2658.6,3.76126]
[1727367044855,7.52065,2659.4,2658.8,3.76108]
[1727367045365,3.7603,2659.4,2658.8,3.76108]
[1727367045902,3.76058,2659.2,2658.6,3.76131]
[1727367046202,7.52122,2659.2,2658.6,3.76131]
[1727367046501,0.09401665,2659.1,2658.4,3.76154]
[1727367046685,0.09402923,2659.3,2658.2,4.58171]
[1727367046868,4.25316122,2659.4,2658.2,0.8199]
[1727367046869,3.76133,2658.7,2658.2,0.8199]
[1727367047063,4.43773,2658.7,2658.2,4.58182]
[1727367047262,4.43773,2658.7,2658.1,7.52405]
[1727367047462,4.43773,2658.7,2658.1,3.76199]
[1727367047669,4.43773,2658.7,2658.1,7.52399]
[1727367047874,4.43773,2658.7,2658.2,3.76187]
[1727367048079,4.43773,2658.7,2658.2,3.83710096]
[1727367048491,4.43773,2658.7,2658.2,3.76187]
[1727367050385,4.43773,2658.7,2658.2,0.07523097]
[1727367050617,3.76153,2658.5,2658.0,3.76213]
[1727367051128,3.76153,2658.5,2657.3,0.8]
[1727367051129,3.76279,2657.6,2657.3,0.8]
[1727367051426,3.7631,2657.4,2657.0,0.8]
[1727367051781,3.76331,2657.3,2656.8,7.34]
[1727367052012,3.76331,2657.3,2656.9,3.76369]
[1727367052013,0.6764,2657.3,2656.9,3.76369]
[1727367052209,0.6764,2657.3,2656.8,3.76378]
[1727367052412,0.77048527,2657.3,2656.8,3.76378]
[1727367052721,3.76337,2657.2,2656.7,3.8025486]
[1727367053325,4.43968,2657.3,2656.8,3.76391]
[1727367053527,3.76344,2657.2,2656.7,0.0384886]
[1727367053886,3.76364,2657.0,2656.7,0.0384886]
[1727367054219,7.52693,2657.2,2656.7,0.0384886]
[1727367054404,3.76344,2657.2,2656.7,0.0384886]
[1727367055650,3.76354,2657.1,2656.7,0.0384886]
[1727367056518,3.85775278,2657.0,2656.7,0.0384886]
[1727367056993,3.76381,2656.9,2656.7,0.0384886]
[1727367057379,3.76392,2656.8,2656.7,0.0384886]
[1727367057818,7.92118474,2657.1,2656.7,0.0384886]
[1727367058031,3.76366,2657.0,2656.7,0.0384886]
[1727367059232,3.76359,2657.1,2656.7,0.0384886]
[1727367059233,3.76392,2656.8,2656.7,0.0384886]
[1727367059433,4.53443726,2656.8,2656.7,0.0384886]
[1727367059746,5.36426199,2656.8,2656.7,0.0384886]
[1727367060229,5.27014473,2656.8,2656.7,0.0384886]
[1727367060597,4.44032,2656.8,2656.7,0.0384886]
[1727367060922,7.53443005,2656.8,2656.7,0.0384886]
[1727367061786,7.44032,2656.8,2656.7,0.03342346]
[1727367062134,4.44032,2656.8,2656.7,0.03342346]
[1727367062291,5.35484205,2656.8,2656.7,0.03342346]
[1727367062493,5.260733,2656.8,2656.7,0.03342346]
[1727367063883,5.35484826,2656.8,2656.7,0.03342346]
[1727367064730,5.260733,2656.8,2656.7,0.03342346]
[1727367065226,5.35484829,2656.8,2656.7,0.03342346]
[1727367065397,5.35485008,2656.8,2656.7,0.03342346]
[1727367065601,5.260733,2656.8,2656.7,0.03342346]
[1727367066503,4.67845433,2656.8,2656.7,0.03342346]
[1727367066687,8.260733,2656.8,2656.7,0.03342346]
[1727367069254,12.51389422,2656.8,2656.7,0.03342346]
[1727367069757,8.260733,2656.8,2656.7,0.03342346]
[1727367069970,12.51389422,2656.8,2656.7,0.03342346]
[1727367075218,8.260733,2656.8,2656.7,0.03342346]
[1727367075422,12.51389422,2656.8,2656.7,0.03342346]
[1727367076686,12.90785315,2656.8,2656.7,0.03342346]
[1727367076996,12.51389422,2656.8,2656.7,0.03342346]
[1727367078580,8.260733,2656.8,2656.7,0.03342346]
[1727367078766,7.44032,2656.8,2656.7,0.03342346]
[1727367079180,7.53444101,2656.8,2656.7,0.03342346]
[1727367079959,7.44032,2656.8,2656.7,0.03342346]
[1727367080829,7.44032,2656.8,2655.9,0.0384886]
[1727367080830,4.44146,2656.0,2655.9,0.0384886]
[1727367081099,4.885606,2656.0,2655.9,0.0384886]
[1727367081299,4.97975655,2656.0,2655.9,0.0384886]
[1727367081594,4.885606,2656.0,2655.9,0.0384886]
[1727367082690,7.97976659,2656.0,2655.9,0.0384886]
[1727367082989,7.885606,2656.0,2655.9,0.0384886]
[1727367090701,8.00733595,2656.0,2655.9,0.0384886]
[1727367091305,12.26049717,2656.0,2655.9,0.0384886]
[1727367091644,3.76619,2655.2,2655.1,0.0384886]
[1727367092350,7.32105128,2655.2,2655.1,0.0384886]
[1727367092696,7.22687038,2655.2,2655.1,0.0384886]
[1727367093244,3.7669,2654.7,2654.6,0.8301]
[1727367093449,4.520267,2654.7,2654.6,0.8891517]
[1727367093754,4.520267,2654.7,2653.9,6.8070103]
[1727367093755,3.76789,2654.0,2653.9,0.8714903]
[1727367093956,3.76789,2654.0,2653.9,0.0390903]
[1727367093957,3.86210326,2654.0,2653.9,0.0390903]
[1727367094141,7.32278511,2654.0,2653.9,0.0390903]
[1727367094442,3.86210473,2654.0,2653.9,0.0390903]
[1727367094604,4.6250922,2654.0,2653.9,0.0390903]
[1727367095247,7.62510091,2654.0,2653.9,0.0390903]
[1727367096112,7.62510091,2654.0,2653.0,0.0390903]
[1727367096113,3.76917,2653.1,2653.0,0.8582903]
[1727367096347,3.76917,2653.1,2653.0,0.0390903]
[1727367096348,8.03209382,2653.1,2653.0,0.0390903]
[1727367096651,11.40901082,2653.1,2653.0,0.0390903]
[1727367098632,7.146087,2653.1,2653.0,0.0390903]
[1727367098865,6.76917,2653.1,2653.0,0.0390903]
[1727367100367,11.12635377,2653.1,2653.0,0.0390903]
[1727367100578,11.03209382,2653.1,2653.0,0.0390903]
[1727367100782,11.70849382,2653.1,2653.0,0.0390903]
[1727367104234,6.76917,2653.1,2653.0,0.0390903]
[1727367107317,4.52299,2653.1,2653.0,0.0390903]
[1727367107506,3.76917,2653.1,2653.0,0.0390903]
[1727367110515,3.86341934,2653.1,2653.0,0.0390903]
[1727367111250,6.76917,2653.1,2653.0,0.0390903]
[1727367112502,6.86342131,2653.1,2653.0,0.0390903]
[1727367112732,6.76917,2653.1,2653.0,0.0390903]
[1727367114328,7.82299,2653.1,2653.0,0.0390903]
[1727367115147,8.49939,2653.1,2653.0,0.0390903]
[1727367120317,7.82299,2653.1,2653.0,0.0390903]
[1727367120671,3.76917,2653.1,2653.0,0.0390903]
[1727367120817,3.86342244,2653.1,2653.0,0.0390903]
[1727367121206,3.86342244,2653.1,2652.2,0.0390903]
[1727367121207,3.77031,2652.3,2652.2,0.0390903]
[1727367121607,11.03323382,2652.3,2652.2,0.0390903]
[1727367121845,12.5812162,2652.3,2652.2,0.0390903]
[1727367122145,13.2576162,2652.3,2652.2,0.0390903]
[1727367122351,13.2576162,2652.3,2651.5,0.8248]
[1727367122644,6.77051,2652.2,2652.1,0.0416001]
[1727367122953,8.85034262,2652.2,2652.1,0.0416001]
[1727367124446,9.52674262,2652.2,2652.1,0.0416001]
[1727367125564,8.85034262,2652.2,2652.1,0.0416001]
[1727367125777,3.77051,2652.2,2652.1,0.0416001]
[1727367125989,3.77051,2652.2,2652.1,0.8574001]
[1727367127379,3.77032,2652.3,2652.1,0.8574001]
[1727367127586,3.77006,2652.5,2652.1,0.8574001]
[1727367127941,0.39447448,2653.1,2652.1,0.8574001]
[1727367128148,3.77003,2652.5,2652.2,0.7648]
[1727367128886,7.53964,2652.7,2652.3,0.7648]
[1727367129045,3.7698,2652.7,2652.3,0.7648]
[1727367129457,3.76953,2652.9,2652.3,0.7648]
[1727367129783,3.76953,2652.9,2652.4,0.8078]
[1727367129987,3.76985,2652.7,2652.4,0.8078]
[1727367130294,3.76924,2653.1,2652.4,0.8078]
[1727367130580,3.76894,2653.3,2652.7,0.8078]
[1727367130949,3.76894,2653.3,2652.7,3.76971]
[1727367131139,3.76894,2653.3,2652.7,0.8078]
[1727367131140,7.53796,2653.3,2652.7,0.8078]
[1727367131344,7.53734,2653.5,2652.9,0.813]
[1727367131542,3.76862,2653.5,2652.9,0.813]
[1727367131774,3.76876,2653.4,2652.9,0.813]
[1727367132086,0.6764,2654.8,2653.6,0.813]
[1727367132290,3.76779,2654.1,2653.6,0.813]
[1727367132476,3.76792,2654.0,2653.6,0.813]
[1727367133949,3.7677,2654.2,2653.6,0.813]
[1727367134352,3.7677,2654.2,2653.7,0.8247]
[1727367135093,3.86196341,2654.1,2653.7,0.8247]
[1727367135388,3.76806,2653.9,2653.7,0.8247]
[1727367135752,3.76777,2654.1,2653.7,0.8247]
[1727367135964,3.76804,2653.9,2653.7,0.8247]
[1727367136349,3.76818,2653.8,2653.7,0.8247]
[1727367138158,3.7686,2653.5,2652.8,0.7864]
[1727367138357,3.76945,2652.9,2652.8,0.7864]
[1727367138869,3.76928,2653.1,2652.8,0.7864]
[1727367139257,3.76851,2653.6,2652.8,0.7864]
[1727367139258,3.76945,2652.9,2652.8,0.7864]
[1727367140577,3.76943,2653.0,2652.8,0.7864]
[1727367140967,3.76945,2652.9,2652.8,0.7864]
[1727367141184,3.86369514,2652.9,2652.8,0.7864]
[1727367141502,3.76945,2652.9,2652.8,0.7864]
[1727367142110,4.61758379,2652.9,2652.8,0.7864]
[1727367142257,3.77003,2652.5,2652.2,0.8141]
[1727367142463,3.77031,2652.3,2652.2,0.8141]
[1727367142695,3.86457065,2652.3,2652.2,0.8141]
[1727367143393,3.77045,2652.2,2652.1,0.0416001]
[1727367144258,3.77031,2652.3,2652.1,0.0416001]
[1727367144495,3.86472359,2652.2,2652.1,0.0416001]
[1727367145380,3.77045,2652.2,2652.1,0.0416001]
[1727367147159,3.77045,2652.2,2652.1,0.8668001]
[1727367150003,4.524526,2652.2,2652.1,0.0416001]
[1727367151485,3.77045,2652.2,2652.1,0.0416001]
[1727367153075,8.03255382,2652.8,2652.1,0.0416001]
[1727367153076,3.77017,2652.4,2652.1,0.0416001]
[1727367153317,3.77017,2652.4,2652.2,0.7566]
[1727367153524,3.77003,2652.5,2652.2,0.7566]
[1727367154021,3.77017,2652.4,2652.2,0.7566]
[1727367154226,3.77031,2652.3,2652.2,0.7566]
[1727367154376,7.54041,2652.4,2652.2,0.7566]
[1727367154581,3.77017,2652.4,2652.2,0.7566]
[1727367154799,3.76993,2652.6,2652.2,0.7566]
[1727367155000,3.77003,2652.5,2652.2,0.7566]
[1727367155599,3.77027,2652.4,2652.2,0.7566]
[1727367156239,3.76998,2652.6,2652.2,0.7566]
[1727367156402,3.76969,2652.8,2652.2,3.77044]
[1727367156601,3.76945,2653.0,2652.4,4.58366]
[1727367156942,3.76944,2653.0,2652.5,0.8135]
[1727367157100,3.76944,2653.0,2652.5,4.58348]
[1727367157298,7.53822,2653.2,2652.6,4.57236]
[1727367157517,3.7691,2653.2,2652.8,0.8025]
[1727367158041,3.76884,2653.4,2652.8,0.8025]
[1727367158227,3.76857,2653.6,2653.1,0.7631]
[1727367158434,7.53761,2653.4,2653.1,0.7631]
[1727367158607,3.76876,2653.4,2653.2,0.55]
[1727367159202,3.76889,2653.3,2653.2,0.55]
[1727367159405,3.86312011,2653.3,2653.2,0.55]